{"text_format":"3","workbook":"xlsx","n_sheets":2,"sheets":["Source","Info"],"not_rendered":{"macros":1,"defined_names":1},"read":"whole","date_system":"1900"}

{"sheet":"Source","index":0,"n_rows":173,"n_cols":15,"rows_kept":173}
["Campagne","Réserve","Device",null,"sDay","eDay","toDay","Budget Hier","Date","Vendor Name","Advertiser Name (normalized)","IO Name"]
[{"$nulls":8},"2019-03-06","TubeMogul","FR - Television","2019-02 - Television - CRV Hybrid - CUTV IPTV PMP - Mob. + tab. - Vid. pre-roll - VTR"]
[{"$nulls":8},"2019-03-06","DBM","FR - Television","2019-03 - Television CRV - Retargeting - Multi-device - IAB - CPL"]
[{"$nulls":8},"2019-03-06","DBM","FR - Television","2019-03 - Television CRV - Prospection - Multi-device - IAB - CPL"]
[{"$nulls":8},"2019-03-06","TubeMogul","FR - Television","2019-02 - Television - CRV Hybrid - CUTV PMP - PC - Vid. pre-roll - VTR"]
[{"$nulls":8},"2019-03-06","DBM","FR - Television","2019-02 - Television - CRV Hybrid - PC - Vid. pre-roll - VTR"]
[{"$nulls":3},{"$f":"Info!$I$3/15","v":1333.3333333333333},{"$nulls":4},"2019-03-06","DBM","FR - Television","2019-02 - Television - CRV Hybrid - Mob. + tab. - Vid. pre-roll - VTR"]
[{"$nulls":8},"2019-03-06","FreeWheel","FR - Television","2019-02 - Television - CRV Hybrid - PC - Vid. pre-roll - VTR"]
[{"$nulls":8},"2019-03-06","TubeMogul","FR - Television","2019-02 - Television - CRV Hybrid - CUTV PMP - Mob. + tab. - Vid. pre-roll - VTR"]
[{"$nulls":8},"2019-03-06","DBM","FR - Television","2019-03 - Television CRV - Prospection - Scibids - Multi-device - IAB - CPL"]
[{"$nulls":3},{"$f":"Info!$I$2/17","v":588.2352941176471},{"$nulls":4},"2019-03-06","Dynadmic","FR - Television","2019-02 - Television - CRV Hybrid - Mob. + tab. - Vid. pre-roll - VTR"]
[{"$nulls":8},"2019-03-06","DBM","FR - Television","2019-03 - Television CRV - Prospection - Multi-device - Native - CPL"]
[{"$nulls":8},"2019-03-05","TubeMogul","FR - Television","2019-02 - Television - CRV Hybrid - CUTV PMP - PC - Vid. pre-roll - VTR"]
[{"$nulls":8},"2019-03-05","TubeMogul","FR - Television","2019-02 - Television - CRV Hybrid - CUTV IPTV PMP - Mob. + tab. - Vid. pre-roll - VTR"]
[{"$nulls":8},"2019-03-05","DBM","FR - Television","2019-02 - Television - CRV Hybrid - PC - Vid. pre-roll - VTR"]
[{"$nulls":8},"2019-03-05","DBM","FR - Television","2019-03 - Television CRV - Retargeting - Multi-device - IAB - CPL"]
[{"$nulls":8},"2019-03-05","DBM","FR - Television","2019-03 - Television CRV - Prospection - Multi-device - IAB - CPL"]
[{"$nulls":8},"2019-03-05","FreeWheel","FR - Television","2019-02 - Television - CRV Hybrid - PC - Vid. pre-roll - VTR"]
[{"$nulls":8},"2019-03-05","TubeMogul","FR - Television","2019-02 - Television - CRV Hybrid - CUTV PMP - Mob. + tab. - Vid. pre-roll - VTR"]
[{"$nulls":8},"2019-03-05","DBM","FR - Television","2019-03 - Television CRV - Prospection - Scibids - Multi-device - IAB - CPL"]
[{"$nulls":3},{"$f":"Info!$I$2/17","v":588.2352941176471},{"$nulls":4},"2019-03-05","Dynadmic","FR - Television","2019-02 - Television - CRV Hybrid - Mob. + tab. - Vid. pre-roll - VTR"]
[{"$nulls":3},{"$f":"Info!$I$3/15","v":1333.3333333333333},{"$nulls":4},"2019-03-05","DBM","FR - Television","2019-02 - Television - CRV Hybrid - Mob. + tab. - Vid. pre-roll - VTR"]
[{"$nulls":8},"2019-03-05","DBM","FR - Television","2019-03 - Television CRV - Prospection - Multi-device - Native - CPL"]
[{"$nulls":8},"2019-03-04","DBM","FR - Television","2019-03 - Television CRV - Retargeting - Multi-device - IAB - CPL"]
[{"$nulls":8},"2019-03-04","DBM","FR - Television","2019-03 - Television CRV - Prospection - Multi-device - IAB - CPL"]
[{"$nulls":8},"2019-03-04","TubeMogul","FR - Television","2019-02 - Television - CRV Hybrid - CUTV PMP - PC - Vid. pre-roll - VTR"]
[{"$nulls":8},"2019-03-04","TubeMogul","FR - Television","2019-02 - Television - CRV Hybrid - CUTV IPTV PMP - Mob. + tab. - Vid. pre-roll - VTR"]
[{"$nulls":3},{"$f":"Info!$I$2/17","v":588.2352941176471},{"$nulls":4},"2019-03-04","Dynadmic","FR - Television","2019-02 - Television - CRV Hybrid - Mob. + tab. - Vid. pre-roll - VTR"]
[{"$nulls":8},"2019-03-04","FreeWheel","FR - Television","2019-02 - Television - CRV Hybrid - PC - Vid. pre-roll - VTR"]
[{"$nulls":3},{"$f":"Info!$I$3/15","v":1333.3333333333333},{"$nulls":4},"2019-03-04","DBM","FR - Television","2019-02 - Television - CRV Hybrid - Mob. + tab. - Vid. pre-roll - VTR"]
[{"$nulls":8},"2019-03-04","TubeMogul","FR - Television","2019-02 - Television - CRV Hybrid - CUTV PMP - Mob. + tab. - Vid. pre-roll - VTR"]
[{"$nulls":8},"2019-03-04","DBM","FR - Television","2019-02 - Television - CRV Hybrid - PC - Vid. pre-roll - VTR"]
[{"$nulls":8},"2019-03-03","DBM","FR - Television","2019-01 - Television - Moto CB650R - Multi-device - Vid. in-read - VTR"]
[{"$nulls":8},"2019-03-03","TubeMogul","FR - Television","2019-02 - Television - CRV Hybrid - CUTV PMP - PC - Vid. pre-roll - VTR"]
[{"$nulls":3},{"$f":"Info!$I$3/15","v":1333.3333333333333},{"$nulls":4},"2019-03-03","DBM","FR - Television","2019-02 - Television - CRV Hybrid - Mob. + tab. - Vid. pre-roll - VTR"]
[{"$nulls":8},"2019-03-03","DBM","FR - Television","2019-02 - Television - CRV Hybrid - PC - Vid. pre-roll - VTR"]
[{"$nulls":8},"2019-03-03","TubeMogul","FR - Television","2019-02 - Television - CRV Hybrid - CUTV IPTV PMP - Mob. + tab. - Vid. pre-roll - VTR"]
[{"$nulls":8},"2019-03-03","TubeMogul","FR - Television","2019-02 - Television - CRV Hybrid - CUTV PMP - Mob. + tab. - Vid. pre-roll - VTR"]
[{"$nulls":8},"2019-03-03","FreeWheel","FR - Television","2019-02 - Television - CRV Hybrid - PC - Vid. pre-roll - VTR"]
[{"$nulls":3},{"$f":"Info!$I$2/17","v":588.2352941176471},{"$nulls":4},"2019-03-03","Dynadmic","FR - Television","2019-02 - Television - CRV Hybrid - Mob. + tab. - Vid. pre-roll - VTR"]
[{"$nulls":8},"2019-03-02","DBM","FR - Television","2019-01 - Television - Moto CB650R - Multi-device - Vid. in-read - VTR"]
[{"$nulls":3},{"$f":"Info!$I$2/17","v":588.2352941176471},{"$nulls":4},"2019-03-02","Dynadmic","FR - Television","2019-02 - Television - CRV Hybrid - Mob. + tab. - Vid. pre-roll - VTR"]
[{"$nulls":8},"2019-03-02","TubeMogul","FR - Television","2019-02 - Television - CRV Hybrid - CUTV PMP - Mob. + tab. - Vid. pre-roll - VTR"]
[{"$nulls":8},"2019-03-02","TubeMogul","FR - Television","2019-02 - Television - CRV Hybrid - CUTV IPTV PMP - Mob. + tab. - Vid. pre-roll - VTR"]
[{"$nulls":3},{"$f":"Info!$I$3/15","v":1333.3333333333333},{"$nulls":4},"2019-03-02","DBM","FR - Television","2019-02 - Television - CRV Hybrid - Mob. + tab. - Vid. pre-roll - VTR"]
[{"$nulls":8},"2019-03-02","DBM","FR - Television","2019-02 - Television - CRV Hybrid - PC - Vid. pre-roll - VTR"]
[{"$nulls":8},"2019-03-02","TubeMogul","FR - Television","2019-02 - Television - CRV Hybrid - CUTV PMP - PC - Vid. pre-roll - VTR"]
[{"$nulls":8},"2019-03-02","FreeWheel","FR - Television","2019-02 - Television - CRV Hybrid - PC - Vid. pre-roll - VTR"]
[{"$nulls":3},{"$f":"Info!$I$2/17","v":588.2352941176471},{"$nulls":4},"2019-03-01","Dynadmic","FR - Television","2019-02 - Television - CRV Hybrid - Mob. + tab. - Vid. pre-roll - VTR"]
[{"$nulls":8},"2019-03-01","FreeWheel","FR - Television","2019-02 - Television - CRV Hybrid - PC - Vid. pre-roll - VTR"]
[{"$nulls":8},"2019-03-01","DBM","FR - Television","2019-01 - Television - Moto CB650R - Multi-device - Vid. in-read - VTR"]
[{"$nulls":8},"2019-03-01","TubeMogul","FR - Television","2019-02 - Television - CRV Hybrid - CUTV PMP - Mob. + tab. - Vid. pre-roll - VTR"]
[{"$nulls":8},"2019-03-01","TubeMogul","FR - Television","2019-02 - Television - CRV Hybrid - CUTV IPTV PMP - Mob. + tab. - Vid. pre-roll - VTR"]
[{"$nulls":8},"2019-03-01","TubeMogul","FR - Television","2019-02 - Television - CRV Hybrid - CUTV PMP - PC - Vid. pre-roll - VTR"]
[{"$nulls":3},{"$f":"Info!$I$3/15","v":1333.3333333333333},{"$nulls":4},"2019-03-01","DBM","FR - Television","2019-02 - Television - CRV Hybrid - Mob. + tab. - Vid. pre-roll - VTR"]
[{"$nulls":8},"2019-03-01","DBM","FR - Television","2019-02 - Television - CRV Hybrid - PC - Vid. pre-roll - VTR"]
[{"$nulls":8},"2019-02-28","DBM","FR - Television","2019-02 - Television - CRV Hybrid - PC - Vid. pre-roll - VTR"]
[{"$nulls":8},"2019-02-28","TubeMogul","FR - Television","2019-02 - Television - CRV Hybrid - CUTV PMP - PC - Vid. pre-roll - VTR"]
[{"$nulls":3},{"$f":"Info!$I$3/15","v":1333.3333333333333},{"$nulls":4},"2019-02-28","DBM","FR - Television","2019-02 - Television - CRV Hybrid - Mob. + tab. - Vid. pre-roll - VTR"]
[{"$nulls":3},{"$f":"Info!$I$2/17","v":588.2352941176471},{"$nulls":4},"2019-02-28","Dynadmic","FR - Television","2019-02 - Television - CRV Hybrid - Mob. + tab. - Vid. pre-roll - VTR"]
[{"$nulls":8},"2019-02-28","TubeMogul","FR - Television","2019-02 - Television - CRV Hybrid - CUTV PMP - Mob. + tab. - Vid. pre-roll - VTR"]
[{"$nulls":8},"2019-02-28","FreeWheel","FR - Television","2019-02 - Television - CRV Hybrid - PC - Vid. pre-roll - VTR"]
[{"$nulls":8},"2019-02-28","TubeMogul","FR - Television","2019-02 - Television - CRV Hybrid - CUTV IPTV PMP - Mob. + tab. - Vid. pre-roll - VTR"]
[{"$nulls":8},"2019-02-27","TubeMogul","FR - Television","2019-02 - Television - CRV Hybrid - CUTV IPTV PMP - Mob. + tab. - Vid. pre-roll - VTR"]
[{"$nulls":8},"2019-02-27","TubeMogul","FR - Television","2019-02 - Television - CRV Hybrid - CUTV PMP - PC - Vid. pre-roll - VTR"]
[{"$nulls":8},"2019-02-27","DBM","FR - Television","2019-02 - Television - CRV Hybrid - PC - Vid. pre-roll - VTR"]
[{"$nulls":8},"2019-02-27","DBM","FR - Television","2019-01 - Television - Moto CB650R - Multi-device - Vid. in-read - VTR"]
[{"$nulls":3},{"$f":"Info!$I$2/17","v":588.2352941176471},{"$nulls":4},"2019-02-27","Dynadmic","FR - Television","2019-02 - Television - CRV Hybrid - Mob. + tab. - Vid. pre-roll - VTR"]
[{"$nulls":8},"2019-02-27","TubeMogul","FR - Television","2019-02 - Television - CRV Hybrid - CUTV PMP - Mob. + tab. - Vid. pre-roll - VTR"]
[{"$nulls":8},"2019-02-27","FreeWheel","FR - Television","2019-02 - Television - CRV Hybrid - PC - Vid. pre-roll - VTR"]
[{"$nulls":3},{"$f":"Info!$I$3/15","v":1333.3333333333333},{"$nulls":4},"2019-02-27","DBM","FR - Television","2019-02 - Television - CRV Hybrid - Mob. + tab. - Vid. pre-roll - VTR",null,null,{"$f":"20000/15","v":1333.3333333333333}]
[{"$nulls":8},"2019-02-26","DBM","FR - Television","2019-01 - Television - Moto CB650R - Multi-device - Vid. pre-roll - VTR"]
[{"$nulls":8},"2019-02-26","DBM","FR - Television","2019-01 - Television - Moto CB650R - Multi-device - Vid. in-read - VTR"]
[{"$nulls":8},"2019-02-26","TubeMogul","FR - Television","2019-02 - Television - CRV Hybrid - CUTV IPTV PMP - Mob. + tab. - Vid. pre-roll - VTR"]
[{"$nulls":8},"2019-02-26","TubeMogul","FR - Television","2019-02 - Television - CRV Hybrid - CUTV PMP - PC - Vid. pre-roll - VTR"]
[{"$nulls":3},{"$f":"Info!$I$2/17","v":588.2352941176471},{"$nulls":4},"2019-02-26","Dynadmic","FR - Television","2019-02 - Television - CRV Hybrid - Mob. + tab. - Vid. pre-roll - VTR"]
[{"$nulls":8},"2019-02-26","DBM","FR - Television","2019-02 - Television - CRV Hybrid - PC - Vid. pre-roll - VTR"]
[{"$nulls":8},"2019-02-26","TubeMogul","FR - Television","2019-02 - Television - CRV Hybrid - CUTV PMP - Mob. + tab. - Vid. pre-roll - VTR"]
[{"$nulls":8},"2019-02-26","FreeWheel","FR - Television","2019-02 - Television - CRV Hybrid - PC - Vid. pre-roll - VTR"]
[{"$nulls":3},{"$f":"Info!$I$3/15","v":1333.3333333333333},{"$nulls":4},"2019-02-26","DBM","FR - Television","2019-02 - Television - CRV Hybrid - Mob. + tab. - Vid. pre-roll - VTR"]
[{"$nulls":8},"2019-02-25","DBM","FR - Television","2019-02 - Television - CRV Hybrid - PC - Vid. pre-roll - VTR"]
[{"$nulls":3},{"$f":"Info!$I$3/15","v":1333.3333333333333},{"$nulls":4},"2019-02-25","DBM","FR - Television","2019-02 - Television - CRV Hybrid - Mob. + tab. - Vid. pre-roll - VTR"]
[{"$nulls":8},"2019-02-25","TubeMogul","FR - Television","2019-02 - Television - CRV Hybrid - CUTV PMP - PC - Vid. pre-roll - VTR"]
[{"$nulls":8},"2019-02-25","FreeWheel","FR - Television","2019-02 - Television - CRV Hybrid - PC - Vid. pre-roll - VTR"]
[{"$nulls":3},{"$f":"Info!$I$2/17","v":588.2352941176471},{"$nulls":4},"2019-02-25","Dynadmic","FR - Television","2019-02 - Television - CRV Hybrid - Mob. + tab. - Vid. pre-roll - VTR"]
[{"$nulls":8},"2019-02-25","DBM","FR - Television","2019-01 - Television - Moto CB650R - Multi-device - Vid. in-read - VTR"]
[{"$nulls":8},"2019-02-25","TubeMogul","FR - Television","2019-02 - Television - CRV Hybrid - CUTV IPTV PMP - Mob. + tab. - Vid. pre-roll - VTR"]
[{"$nulls":8},"2019-02-25","TubeMogul","FR - Television","2019-02 - Television - CRV Hybrid - CUTV PMP - Mob. + tab. - Vid. pre-roll - VTR"]
[{"$nulls":8},"2019-02-24","DBM","FR - Television","2019-01 - Television - Moto CB650R - Multi-device - Vid. in-read - VTR"]
[{"$nulls":8},"2019-02-24","DBM","FR - Television","2019-01 - Television - Moto CB650R - Multi-device - Vid. pre-roll - VTR"]
[{"$nulls":3},{"$f":"Info!$I$2/17","v":588.2352941176471},{"$nulls":4},"2019-02-24","Dynadmic","FR - Television","2019-02 - Television - CRV Hybrid - Mob. + tab. - Vid. pre-roll - VTR"]
[{"$nulls":8},"2019-02-24","FreeWheel","FR - Television","2019-02 - Television - CRV Hybrid - PC - Vid. pre-roll - VTR"]
[{"$nulls":8},"2019-02-24","TubeMogul","FR - Television","2019-02 - Television - CRV Hybrid - CUTV IPTV PMP - Mob. + tab. - Vid. pre-roll - VTR"]
[{"$nulls":8},"2019-02-24","TubeMogul","FR - Television","2019-02 - Television - CRV Hybrid - CUTV PMP - Mob. + tab. - Vid. pre-roll - VTR"]
[{"$nulls":3},{"$f":"Info!$I$3/15","v":1333.3333333333333},{"$nulls":4},"2019-02-24","DBM","FR - Television","2019-02 - Television - CRV Hybrid - Mob. + tab. - Vid. pre-roll - VTR"]
[{"$nulls":8},"2019-02-24","DBM","FR - Television","2019-02 - Television - CRV Hybrid - PC - Vid. pre-roll - VTR"]
[{"$nulls":8},"2019-02-24","TubeMogul","FR - Television","2019-02 - Television - CRV Hybrid - CUTV PMP - PC - Vid. pre-roll - VTR"]
[{"$nulls":8},"2019-02-23","DBM","FR - Television","2019-01 - Television - Moto CB650R - Multi-device - Vid. in-read - VTR"]
[{"$nulls":8},"2019-02-23","DBM","FR - Television","2019-01 - Television - Moto CB650R - Multi-device - Vid. pre-roll - VTR"]
[{"$nulls":8},"2019-02-23","TubeMogul","FR - Television","2019-02 - Television - CRV Hybrid - CUTV PMP - Mob. + tab. - Vid. pre-roll - VTR"]
[{"$nulls":8},"2019-02-23","FreeWheel","FR - Television","2019-02 - Television - CRV Hybrid - PC - Vid. pre-roll - VTR"]
[{"$nulls":8},"2019-02-23","TubeMogul","FR - Television","2019-02 - Television - CRV Hybrid - CUTV IPTV PMP - Mob. + tab. - Vid. pre-roll - VTR"]
[{"$nulls":3},{"$f":"Info!$I$2/17","v":588.2352941176471},{"$nulls":4},"2019-02-23","Dynadmic","FR - Television","2019-02 - Television - CRV Hybrid - Mob. + tab. - Vid. pre-roll - VTR"]
[{"$nulls":3},{"$f":"Info!$I$3/15","v":1333.3333333333333},{"$nulls":4},"2019-02-23","DBM","FR - Television","2019-02 - Television - CRV Hybrid - Mob. + tab. - Vid. pre-roll - VTR"]
[{"$nulls":8},"2019-02-23","DBM","FR - Television","2019-02 - Television - CRV Hybrid - PC - Vid. pre-roll - VTR"]
[{"$nulls":8},"2019-02-23","TubeMogul","FR - Television","2019-02 - Television - CRV Hybrid - CUTV PMP - PC - Vid. pre-roll - VTR"]
[{"$nulls":8},"2019-02-22","FreeWheel","FR - Television","2019-02 - Television - CRV Hybrid - PC - Vid. pre-roll - VTR"]
[{"$nulls":3},{"$f":"Info!$I$2/17","v":588.2352941176471},{"$nulls":4},"2019-02-22","Dynadmic","FR - Television","2019-02 - Television - CRV Hybrid - Mob. + tab. - Vid. pre-roll - VTR"]
[{"$nulls":8},"2019-02-22","TubeMogul","FR - Television","2019-02 - Television - CRV Hybrid - CUTV PMP - Mob. + tab. - Vid. pre-roll - VTR"]
[{"$nulls":8},"2019-02-22","DBM","FR - Television","2019-02 - Television - CRV Hybrid - PC - Vid. pre-roll - VTR"]
[{"$nulls":3},{"$f":"Info!$I$3/15","v":1333.3333333333333},{"$nulls":4},"2019-02-22","DBM","FR - Television","2019-02 - Television - CRV Hybrid - Mob. + tab. - Vid. pre-roll - VTR"]
[{"$nulls":8},"2019-02-22","TubeMogul","FR - Television","2019-02 - Television - CRV Hybrid - CUTV IPTV PMP - Mob. + tab. - Vid. pre-roll - VTR"]
[{"$nulls":8},"2019-02-22","TubeMogul","FR - Television","2019-02 - Television - CRV Hybrid - CUTV PMP - PC - Vid. pre-roll - VTR"]
[{"$nulls":8},"2019-02-22","DBM","FR - Television","2019-01 - Television - Moto CB650R - Multi-device - Vid. pre-roll - VTR"]
[{"$nulls":8},"2019-02-22","DBM","FR - Television","2019-01 - Television - Moto CB650R - Multi-device - Vid. in-read - VTR"]
[{"$nulls":3},{"$f":"Info!$I$2/17","v":588.2352941176471},{"$nulls":4},"2019-02-21","Dynadmic","FR - Television","2019-02 - Television - CRV Hybrid - Mob. + tab. - Vid. pre-roll - VTR"]
[{"$nulls":8},"2019-02-21","FreeWheel","FR - Television","2019-02 - Television - CRV Hybrid - PC - Vid. pre-roll - VTR"]
[{"$nulls":8},"2019-02-21","DBM","FR - Television","2019-01 - Television - Moto CB650R - Multi-device - Vid. in-read - VTR"]
[{"$nulls":8},"2019-02-21","TubeMogul","FR - Television","2019-02 - Television - CRV Hybrid - CUTV PMP - Mob. + tab. - Vid. pre-roll - VTR"]
[{"$nulls":8},"2019-02-21","DBM","FR - Television","2019-02 - Television - CRV Hybrid - PC - Vid. pre-roll - VTR"]
[{"$nulls":8},"2019-02-21","TubeMogul","FR - Television","2019-02 - Television - CRV Hybrid - CUTV PMP - PC - Vid. pre-roll - VTR"]
[{"$nulls":3},{"$f":"Info!$I$3/15","v":1333.3333333333333},{"$nulls":4},"2019-02-21","DBM","FR - Television","2019-02 - Television - CRV Hybrid - Mob. + tab. - Vid. pre-roll - VTR"]
[{"$nulls":8},"2019-02-21","TubeMogul","FR - Television","2019-02 - Television - CRV Hybrid - CUTV IPTV PMP - Mob. + tab. - Vid. pre-roll - VTR"]
[{"$nulls":8},"2019-02-21","DBM","FR - Television","2019-01 - Television - Moto CB650R - Multi-device - Vid. pre-roll - VTR"]
[{"$nulls":3},{"$f":"Info!$I$2/17","v":588.2352941176471},{"$nulls":4},"2019-02-20","Dynadmic","FR - Television","2019-02 - Television - CRV Hybrid - Mob. + tab. - Vid. pre-roll - VTR"]
[{"$nulls":8},"2019-02-20","TubeMogul","FR - Television","2019-02 - Television - CRV Hybrid - CUTV PMP - Mob. + tab. - Vid. pre-roll - VTR"]
[{"$nulls":8},"2019-02-20","FreeWheel","FR - Television","2019-02 - Television - CRV Hybrid - PC - Vid. pre-roll - VTR"]
[{"$nulls":8},"2019-02-20","DBM","FR - Television","2019-01 - Television - Moto CB650R - Multi-device - Vid. pre-roll - VTR"]
[{"$nulls":8},"2019-02-20","TubeMogul","FR - Television","2019-02 - Television - CRV Hybrid - CUTV PMP - PC - Vid. pre-roll - VTR"]
[{"$nulls":8},"2019-02-20","DBM","FR - Television","2019-02 - Television - CRV Hybrid - PC - Vid. pre-roll - VTR"]
[{"$nulls":3},{"$f":"Info!$I$3/15","v":1333.3333333333333},{"$nulls":4},"2019-02-20","DBM","FR - Television","2019-02 - Television - CRV Hybrid - Mob. + tab. - Vid. pre-roll - VTR"]
[{"$nulls":8},"2019-02-20","TubeMogul","FR - Television","2019-02 - Television - CRV Hybrid - CUTV IPTV PMP - Mob. + tab. - Vid. pre-roll - VTR"]
[{"$nulls":8},"2019-02-20","DBM","FR - Television","2019-01 - Television - Moto CB650R - Multi-device - Vid. in-read - VTR"]
[{"$nulls":8},"2019-02-19","TubeMogul","FR - Television","2019-02 - Television - CRV Hybrid - CUTV PMP - PC - Vid. pre-roll - VTR"]
[{"$nulls":8},"2019-02-19","TubeMogul","FR - Television","2019-02 - Television - CRV Hybrid - CUTV IPTV PMP - Mob. + tab. - Vid. pre-roll - VTR"]
[{"$nulls":8},"2019-02-19","FreeWheel","FR - Television","2019-02 - Television - CRV Hybrid - PC - Vid. pre-roll - VTR"]
[{"$nulls":8},"2019-02-19","DBM","FR - Television","2019-01 - Television - Moto CB650R - Multi-device - Vid. pre-roll - VTR"]
[{"$nulls":3},{"$f":"Info!$I$2/17","v":588.2352941176471},{"$nulls":4},"2019-02-19","Dynadmic","FR - Television","2019-02 - Television - CRV Hybrid - Mob. + tab. - Vid. pre-roll - VTR"]
[{"$nulls":8},"2019-02-19","TubeMogul","FR - Television","2019-02 - Television - CRV Hybrid - CUTV PMP - Mob. + tab. - Vid. pre-roll - VTR"]
[{"$nulls":8},"2019-02-19","DBM","FR - Television","2019-01 - Television - Moto CB650R - Multi-device - Vid. in-read - VTR"]
[{"$nulls":8},"2019-02-19","DBM","FR - Television","2019-02 - Television - CRV Hybrid - PC - Vid. pre-roll - VTR"]
[{"$nulls":8},"2019-02-18","DBM","FR - Television","2019-01 - Television - Moto CB650R - Multi-device - Vid. in-read - VTR"]
[{"$nulls":8},"2019-02-18","DBM","FR - Television","2019-02 - Television - CRV Hybrid - PC - Vid. pre-roll - VTR"]
[{"$nulls":8},"2019-02-18","TubeMogul","FR - Television","2019-02 - Television - CRV Hybrid - CUTV PMP - Mob. + tab. - Vid. pre-roll - VTR"]
[{"$nulls":8},"2019-02-18","Dynadmic","FR - Television","2019-02 - Television - CRV Hybrid - Mob. + tab. - Vid. pre-roll - VTR"]
[{"$nulls":8},"2019-02-18","DBM","FR - Television","2019-01 - Television - Moto CB650R - Multi-device - Vid. pre-roll - VTR"]
[{"$nulls":8},"2019-02-18","FreeWheel","FR - Television","2019-02 - Television - CRV Hybrid - PC - Vid. pre-roll - VTR"]
[{"$nulls":8},"2019-02-17","DBM","FR - Television","2019-01 - Television - Moto CB650R - Multi-device - Vid. in-read - VTR"]
[{"$nulls":8},"2019-02-17","DBM","FR - Television","2019-01 - Television - Moto CB650R - Multi-device - Vid. pre-roll - VTR"]
[{"$nulls":8},"2019-02-16","DBM","FR - Television","2019-01 - Television - Moto CB650R - Multi-device - Vid. in-read - VTR"]
[{"$nulls":8},"2019-02-16","DBM","FR - Television","2019-01 - Television - Moto CB650R - Multi-device - Vid. pre-roll - VTR"]
[{"$nulls":8},"2019-02-15","DBM","FR - Television","2019-01 - Television - Moto CB650R - Multi-device - Vid. pre-roll - VTR"]
[{"$nulls":8},"2019-02-15","DBM","FR - Television","2019-01 - Television - Moto CB650R - Multi-device - Vid. in-read - VTR"]
[{"$nulls":8},"2019-02-14","DBM","FR - Television","2019-01 - Television - Moto CB650R - Multi-device - Vid. pre-roll - VTR"]
[{"$nulls":8},"2019-02-14","DBM","FR - Television","2019-01 - Television - Moto CB650R - Multi-device - Vid. in-read - VTR"]
[{"$nulls":8},"2019-02-13","DBM","FR - Television","2019-01 - Television - Moto CB650R - Multi-device - Vid. in-read - VTR"]
[{"$nulls":8},"2019-02-13","DBM","FR - Television","2019-01 - Television - Moto CB650R - Multi-device - Vid. pre-roll - VTR"]
[{"$nulls":8},"2019-02-12","DBM","FR - Television","2019-01 - Television - Moto CB650R - Multi-device - Vid. pre-roll - VTR"]
[{"$nulls":8},"2019-02-12","DBM","FR - Television","2019-01 - Television - Moto CB650R - Multi-device - Vid. in-read - VTR"]
[{"$nulls":8},"2019-02-11","DBM","FR - Television","2019-01 - Television - Moto CB650R - Multi-device - Vid. in-read - VTR"]
[{"$nulls":8},"2019-02-11","DBM","FR - Television","2019-01 - Television - Moto CB650R - Multi-device - Vid. pre-roll - VTR"]
[{"$nulls":8},"2019-02-10","DBM","FR - Television","2019-01 - Television - Moto CB650R - Multi-device - Vid. pre-roll - VTR"]
[{"$nulls":8},"2019-02-10","DBM","FR - Television","2019-01 - Television - Moto CB650R - Multi-device - Vid. in-read - VTR"]
[{"$nulls":8},"2019-02-09","DBM","FR - Television","2019-01 - Television - Moto CB650R - Multi-device - Vid. pre-roll - VTR"]
[{"$nulls":8},"2019-02-09","DBM","FR - Television","2019-01 - Television - Moto CB650R - Multi-device - Vid. in-read - VTR"]
[{"$nulls":8},"2019-02-08","DBM","FR - Television","2019-01 - Television - Moto CB650R - Multi-device - Vid. in-read - VTR"]
[{"$nulls":8},"2019-02-08","DBM","FR - Television","2019-01 - Television - Moto CB650R - Multi-device - Vid. pre-roll - VTR"]
[{"$nulls":8},"2019-02-07","DBM","FR - Television","2019-01 - Television - Moto CB650R - Multi-device - Vid. in-read - VTR"]
[{"$nulls":8},"2019-02-07","DBM","FR - Television","2019-01 - Television - Moto CB650R - Multi-device - Vid. pre-roll - VTR"]
[{"$nulls":8},"2019-02-06","DBM","FR - Television","2019-01 - Television - Moto CB650R - Multi-device - Vid. pre-roll - VTR"]
[{"$nulls":8},"2019-02-06","DBM","FR - Television","2019-01 - Television - Moto CB650R - Multi-device - Vid. in-read - VTR"]
[{"$nulls":8},"2019-02-05","DBM","FR - Television","2019-01 - Television - Moto CB650R - Multi-device - Vid. pre-roll - VTR"]
[{"$nulls":8},"2019-02-05","DBM","FR - Television","2019-01 - Television - Moto CB650R - Multi-device - Vid. in-read - VTR"]

{"sheet":"Info","index":1,"n_rows":16,"n_cols":10,"rows_kept":16}
[{"$nulls":7},"Vendor Name","Montant","Insertion Orders"]
[{"$nulls":7},"Dynadmic",{"v":10000,"d":"10,000.00 €"},"2019-02 - Television - CRV Hybrid - Mob. + tab. - Vid. pre-roll - VTR"]
[{"$nulls":7},"DBM",{"v":20000,"d":"20,000.00 €"},"2019-02 - Television - CRV Hybrid - Mob. + tab. - Vid. pre-roll - VTR"]
[{"$nulls":7},"DBM",{"v":15000,"d":"15,000.00 €"},"2019-01 - Television - Moto CB650R - Multi-device - Vid. in-read - VTR"]
[{"$nulls":7},"DBM",{"v":16000,"d":"16,000.00 €"},"2019-01 - Television - Moto CB650R - Multi-device - Vid. pre-roll - VTR"]
[{"$nulls":7},"TubeMogul",{"v":14000,"d":"14,000.00 €"},"2019-02 - Television - CRV Hybrid - CUTV IPTV PMP - Mob. + tab. - Vid. pre-roll - VTR"]
[{"$nulls":7},"TubeMogul",{"v":10700,"d":"10,700.00 €"},"2019-02 - Television - CRV Hybrid - CUTV PMP - Mob. + tab. - Vid. pre-roll - VTR"]
[{"$nulls":7},"TubeMogul",{"v":11600,"d":"11,600.00 €"},"2019-02 - Television - CRV Hybrid - CUTV PMP - PC - Vid. pre-roll - VTR"]
[{"$nulls":7},"Dynadmic",{"v":1800,"d":"1,800.00 €"},"2019-02 - Television - CRV Hybrid - Mob. + tab. - Vid. pre-roll - VTR"]
[{"$nulls":7},"DBM",{"v":4990,"d":"4,990.00 €"},"2019-02 - Television - CRV Hybrid - PC - Vid. pre-roll - VTR"]
[{"$nulls":7},"FreeWheel",{"v":5410,"d":"5,410.00 €"},"2019-02 - Television - CRV Hybrid - PC - Vid. pre-roll - VTR"]
[{"$nulls":7},"DBM",{"v":11500,"d":"11,500.00 €"},"2019-03 - Television CRV - Prospection - Multi-device - IAB - CPL"]
[{"$nulls":7},"DBM",{"v":1290,"d":"1,290.00 €"},"2019-03 - Television CRV - Prospection - Multi-device - IAB - CPL"]
[{"$nulls":7},"DBM",{"v":3245,"d":"3,245.00 €"},"2019-03 - Television CRV - Retargeting - Multi-device - IAB - CPL"]
[{"$nulls":7},"DBM",{"v":2234,"d":"2,234.00 €"},"2019-03 - Television CRV - Prospection - Scibids - Multi-device - IAB - CPL"]
[{"$nulls":7},"DBM",{"v":2134,"d":"2,134.00 €"},"2019-03 - Television CRV - Prospection - Multi-device - Native - CPL"]